bitfinex-derivatives/quotes_BTCF0:USTF0_20251202
["timestamp","ask_amount","ask_price","bid_price","bid_amount"]
[1764687422470,0.61549832,89162.0,89161.0,0.57736]
[1764687422661,0.61549832,89162.0,89148.0,0.45038]
[1764687422662,0.26557,89149.0,89148.0,0.45038]
[1764687422862,0.26557,89149.0,89148.0,0.001]
[1764687422863,0.90779,89149.0,89148.0,0.001]
[1764687423258,0.90779,89149.0,89146.0,0.001]
[1764687423566,0.26557,89147.0,89146.0,0.55905]
[1764687423775,0.54699,89147.0,89146.0,0.55805]
[1764687424065,0.54699,89146.0,89145.0,0.27030832]
[1764687424266,0.3688,89149.0,89145.0,0.56943552]
[1764687424568,0.3608,89157.0,89156.0,0.55805]
[1764687424972,0.90779,89157.0,89156.0,0.55805]
[1764687425671,0.54699,89147.0,89146.0,0.001]
[1764687425855,0.90779,89147.0,89146.0,0.001]
[1764687426260,0.90779,89147.0,89136.0,0.17924]
[1764687426261,0.54699,89146.0,89113.0,0.3608]
[1764687426564,0.3608,89125.0,89112.0,0.17924]
[1764687426765,0.53268,89124.0,89112.0,0.1904614]
[1764687427064,0.53268,89123.0,89112.0,0.1904614]
[1764687427261,0.53268,89122.0,89115.0,0.0112211]
[1764687427457,0.62263304,89122.0,89115.0,0.0112211]
[1764687427766,0.62263304,89122.0,89112.0,0.001]
[1764687427959,0.26557,89113.0,89112.0,0.001]
[1764687428156,0.54699,89113.0,89112.0,0.001]
[1764687428765,0.54699,89113.0,89109.0,0.00016832]
[1764687428766,0.54699,89110.0,89109.0,0.00016832]
[1764687428965,0.54699,89091.0,89090.0,0.00014249]
[1764687429153,1.80123,89091.0,89090.0,0.00014249]
[1764687429361,0.54699,89087.0,89086.0,0.00028063]
[1764687429856,0.5582146,89087.0,89086.0,3e-08]
[1764687430267,0.55829908,89087.0,89086.0,3e-08]
[1764687430953,1.09093908,89087.0,89086.0,3e-08]
[1764687431164,0.01130908,89087.0,89086.0,0.55805003]
[1764687431363,1.09893908,89087.0,89086.0,0.00100003]
[1764687431768,0.56629908,89087.0,89086.0,0.00100003]
[1764687431966,1.09893908,89087.0,89086.0,0.27114003]
[1764687432271,0.55194908,89087.0,89086.0,0.55905003]
[1764687432470,1.09893908,89087.0,89086.0,0.00100003]
[1764687432672,1.09893908,89087.0,89086.0,3e-08]
[1764687432856,0.5582156,89079.0,89078.0,5e-08]
[1764687433176,0.9190156,89079.0,89078.0,5e-08]
[1764687433564,1.45179747,89079.0,89078.0,5e-08]
[1764687433871,0.91915747,89079.0,89078.0,5e-08]
[1764687434073,0.91915747,89079.0,89078.0,0.27114005]
[1764687434074,1.45883747,89079.0,89078.0,0.27114005]
[1764687434366,1.45883747,89079.0,89078.0,0.00100005]
[1764687434761,0.36794187,89079.0,89078.0,0.55905005]
[1764687434961,0.53978187,89079.0,89078.0,0.55905005]
[1764687435674,0.54078187,89079.0,89078.0,0.55905005]
[1764687436566,0.54078187,89079.0,89078.0,0.91985005]
[1764687436768,0.00814187,89079.0,89078.0,0.93107575]
[1764687436964,0.3608,89091.0,89090.0,0.55805]
[1764687437672,0.3608,89099.0,89094.0,0.55805]
[1764687437869,0.0112228,89102.0,89094.0,0.55805]
[1764687438072,0.011223,89100.0,89094.0,0.55805]
[1764687438668,0.0112235,89096.0,89094.0,0.55805]
[1764687438870,0.90795832,89095.0,89090.0,0.001]
[1764687439667,0.91695832,89095.0,89094.0,0.001]
[1764687439979,0.01016832,89095.0,89094.0,0.55905]
[1764687440163,0.00116832,89095.0,89094.0,0.55805]
[1764687440471,0.00716832,89095.0,89094.0,0.55805]
[1764687440867,0.00616832,89095.0,89094.0,0.55805]
[1764687441064,0.26557,89083.0,89064.0,0.0112274]
[1764687441271,0.3608,89079.0,89069.0,0.0112268]
[1764687441471,0.3608,89079.0,89066.0,0.0112272]
[1764687441777,0.3608,89079.0,89062.0,0.3608]
[1764687441985,0.3720256,89079.0,89062.0,0.3608]
[1764687442569,0.7328256,89079.0,89052.0,0.0112289]
[1764687442769,0.7328256,89079.0,89056.0,0.0112284]
[1764687443176,0.7338256,89079.0,89056.0,0.0112284]
[1764687443479,0.7378256,89079.0,89059.0,0.0112281]
[1764687443777,0.7378256,89079.0,89060.0,0.0112279]
[1764687443975,0.7338256,89079.0,89056.0,0.0112284]
[1764687444172,0.7388256,89079.0,89053.0,0.0112288]
[1764687444381,0.7388256,89079.0,89050.0,0.18432]
[1764687444580,1.28260765,89079.0,89046.0,0.36108076]
[1764687444778,0.2767996,89047.0,89046.0,0.00028076]
[1764687444978,1.0907796,89047.0,89046.0,0.00028076]
[1764687445280,0.0112296,89047.0,89046.0,0.27042076]
[1764687445468,0.3608,89048.0,89047.0,0.55805]
[1764687445775,0.0112291,89052.0,89051.0,0.27014]
[1764687445977,0.00016842,89056.0,89055.0,0.55805]
[1764687446174,0.00016842,89056.0,89055.0,0.5692786]
[1764687446780,0.00016842,89056.0,89055.0,0.55805]
[1764687447482,0.3608,89067.0,89066.0,0.55805]
[1764687447977,0.3608,89076.0,89075.0,0.55805]
[1764687448165,0.3608,89087.0,89080.0,0.55805]
[1764687448166,0.5326,89084.0,89080.0,0.55805]
[1764687448368,0.5437847,89086.0,89085.0,0.27014]
[1764687448576,0.0112247,89086.0,89085.0,0.55805]
[1764687448784,0.0112256,89079.0,89077.0,0.00016842]
[1764687448980,0.3608,89078.0,89077.0,0.00016842]
[1764687449175,0.3608,89078.0,89077.0,0.55821842]
[1764687449485,0.90779,89078.0,89077.0,0.00016842]
[1764687450382,0.63137,89078.0,89077.0,0.27030842]
[1764687450675,0.63137,89078.0,89077.0,0.56944432]
[1764687450676,0.005,89078.0,89077.0,0.56944432]
[1764687450883,0.006,89078.0,89077.0,0.56944432]
[1764687451074,0.006,89078.0,89077.0,0.55821842]
[1764687453879,0.3608,89086.0,89085.0,0.5284748]
[1764687454181,0.86913,89086.0,89077.0,0.00016842]
[1764687454379,0.8803548,89086.0,89079.0,0.0112255]
[1764687454572,0.09188145,89097.0,89077.0,0.00016842]
[1764687454573,0.3608,89095.0,89093.0,0.51725]
[1764687455581,0.0112217,89110.0,89093.0,0.51725]
[1764687455790,0.3608,89114.0,89113.0,0.51725]
[1764687457481,0.001,89114.0,89113.0,0.51725]
[1764687458085,0.002,89114.0,89113.0,0.51725]
[1764687458879,0.50833,89106.0,89105.0,0.00016832]
[1764687459380,0.86913,89106.0,89105.0,0.00016832]
[1764687459984,0.86913,89106.0,89105.0,0.25527832]
[1764687460191,0.001,89114.0,89113.0,0.51725]
[1764687460393,0.001,89114.0,89113.0,0.87805]
[1764687460687,0.0002805,89126.0,89121.0,0.5284703]
[1764687461392,0.0002805,89126.0,89121.0,0.8892703]
[1764687463290,0.0002805,89126.0,89125.0,0.5284698]
[1764687464487,0.0012805,89126.0,89125.0,0.5284698]
[1764687465697,0.0012805,89126.0,89125.0,0.8892698]
[1764687466087,0.00016832,89134.0,89133.0,0.5284688]
[1764687466394,0.00016832,89134.0,89133.0,0.8892688]
[1764687468289,0.00116832,89134.0,89133.0,0.8892688]
[1764687468891,0.5634,89164.0,89147.0,0.011217]
[1764687469193,0.5634,89164.0,89155.0,0.51725]
[1764687469497,0.50833,89134.0,89133.0,0.25511]
[1764687469798,0.09188014,89161.0,89141.0,0.2663277]
[1764687469799,0.15892825,89160.0,89141.0,0.2663277]
[1764687470092,0.00016807,89142.0,89141.0,0.5284677]
[1764687470291,0.00016807,89142.0,89141.0,0.8892677]
[1764687470995,0.00016807,89142.0,89141.0,0.87805]
[1764687471201,0.00016807,89142.0,89141.0,0.88005]
[1764687472395,0.00016807,89142.0,89141.0,0.51925]
[1764687473796,0.00116807,89142.0,89141.0,0.87805]
[1764687479894,0.3608,89160.0,89155.0,0.51725]
[1764687480294,0.3608,89164.0,89155.0,0.528466]
[1764687480496,0.00028038,89166.0,89165.0,0.51725]
[1764687480697,0.00351735,89170.0,89169.0,0.5284643]
[1764687481006,0.00351735,89170.0,89165.0,0.3608]
[1764687481007,0.3608,89191.0,89190.0,0.51725]
[1764687481397,0.3608,89201.0,89200.0,0.25511]
[1764687481602,0.3608,89201.0,89200.0,0.51725]
[1764687482091,0.00028025,89206.0,89201.0,0.0112102]
[1764687482291,0.00028025,89206.0,89204.0,0.51725]
[1764687482605,0.5147984,89205.0,89204.0,0.25511]
[1764687484198,0.5147984,89205.0,89193.0,0.15476]
[1764687484897,0.5157984,89205.0,89204.0,0.22389]
[1764687485289,0.5157984,89205.0,89193.0,0.15476]
[1764687486800,0.5157984,89205.0,89196.0,0.0112108]
[1764687487201,0.5157984,89205.0,89193.0,0.15476]
[1764687487397,0.5157984,89205.0,89184.0,0.15476]
[1764687487398,0.47236,89191.0,89184.0,0.15476]
[1764687487598,0.3608,89199.0,89190.0,0.44629]
[1764687487800,0.0074684,89205.0,89193.0,0.0112111]
[1764687487997,0.0064684,89205.0,89190.0,0.3608]
[1764687488193,0.0074684,89205.0,89190.0,0.3608]
[1764687488401,0.47236,89191.0,89190.0,0.3608]
[1764687488794,0.47236,89191.0,89185.0,0.0112122]
[1764687489102,0.47236,89191.0,89184.0,0.1659723]
[1764687489306,0.5312,89199.0,89190.0,0.44629]
[1764687489610,0.00646941,89191.0,89190.0,0.44629]
[1764687490006,0.00646941,89191.0,89190.0,0.80709]
[1764687490803,0.47236,89183.0,89171.0,0.3608]
[1764687491009,0.47236,89183.0,89150.0,0.00011929]
[1764687491010,0.23185,89152.0,89150.0,0.00011929]
[1764687491904,0.23185,89151.0,89150.0,0.00011929]
[1764687492098,0.3608,89157.0,89150.0,0.44640929]
[1764687492304,0.23185,89151.0,89150.0,0.00011929]
[1764687492913,0.23185,89151.0,89150.0,0.22400929]
[1764687493103,0.00016791,89159.0,89150.0,0.44640929]
[1764687493414,0.00016791,89159.0,89158.0,0.8183057]
[1764687493908,0.15892825,89190.0,89167.0,0.14846]
[1764687493909,0.47236,89182.0,89167.0,0.14846]
[1764687494211,0.47236,89182.0,89173.0,0.0112137]
[1764687494407,0.47236,89182.0,89168.0,0.3608]
[1764687494714,0.53104,89190.0,89182.0,0.0112126]
[1764687495011,0.3608,89194.0,89190.0,0.44629]
[1764687495207,0.53104,89199.0,89190.0,0.44629]
[1764687495416,0.00646941,89191.0,89190.0,0.44629]
[1764687496805,0.00646941,89191.0,89190.0,0.4575016]
[1764687498412,0.00646941,89191.0,89190.0,0.44629]
[1764687502809,0.47982941,89191.0,89180.0,0.14846]
[1764687503004,0.15892825,89190.0,89180.0,0.14846]
[1764687503422,0.00746941,89191.0,89180.0,0.14846]
[1764687503621,0.00646941,89191.0,89180.0,0.1596728]
[1764687503826,0.00646941,89191.0,89182.0,0.0112126]
[1764687504131,0.00646941,89191.0,89190.0,0.44629]
[1764687506524,0.00028025,89206.0,89205.0,0.44629]
[1764687506713,0.47264025,89206.0,89205.0,0.22389]
[1764687507328,0.47264025,89206.0,89200.0,0.0112103]
[1764687507722,0.47264025,89206.0,89197.0,0.00016823]
[1764687507723,0.47264025,89206.0,89205.0,0.22389]
[1764687508424,0.47264025,89206.0,89197.0,0.22405823]
[1764687508425,0.47236,89198.0,89197.0,0.22405823]
[1764687509022,0.3608,89199.0,89198.0,0.44629]
[1764687509527,0.59265,89199.0,89198.0,0.44629]
[1764687509723,0.83316,89199.0,89198.0,0.44629]
[1764687510117,0.59265,89199.0,89198.0,0.44629]
[1764687510330,0.00128025,89206.0,89205.0,0.44629]
[1764687510627,0.00128025,89206.0,89205.0,0.39629]
[1764687510827,0.00028025,89206.0,89205.0,0.39629]
[1764687511722,0.00028025,89206.0,89205.0,0.4074997]
[1764687512137,0.05,89221.0,89220.0,0.6059579]
[1764687512322,0.05,89221.0,89220.0,0.59475]
[1764687512722,0.0390872,89221.0,89220.0,0.59475]
[1764687513123,0.56,89235.0,89234.0,0.20956]
[1764687513318,0.00028013,89246.0,89245.0,0.4230747]
[1764687513516,0.3608,89262.0,89259.0,0.20956]
[1764687513517,0.06034819,89261.0,89259.0,0.20956]
[1764687513722,0.21519,89260.0,89259.0,0.20956]
[1764687513927,0.41733,89260.0,89251.0,0.00016812]
[1764687514616,0.41733,89260.0,89259.0,0.005]
[1764687515018,0.41733,89260.0,89259.0,0.41687]
[1764687515325,0.3608,89262.0,89261.0,0.41187]
[1764687516041,0.57599,89262.0,89261.0,0.41187]
[1764687516226,0.77813,89262.0,89261.0,0.20956]
[1764687516424,0.3608,89262.0,89261.0,0.41187]
[1764687516630,0.77813,89262.0,89253.0,0.3608]
[1764687516927,0.77813,89262.0,89261.0,0.014]
[1764687517833,0.41733,89260.0,89259.0,0.001]
[1764687518022,0.41733,89260.0,89259.0,0.20956]
[1764687518330,0.21519,89260.0,89259.0,0.41187]
[1764687518831,0.21519,89260.0,89253.0,0.006]
[1764687518832,0.41733,89260.0,89253.0,0.006]
[1764687519027,0.3608,89263.0,89253.0,0.006]
[1764687519230,0.77813,89263.0,89262.0,0.41187]
[1764687519627,0.41733,89262.0,89261.0,0.014]
[1764687519828,0.41733,89262.0,89261.0,0.22356]
[1764687520023,0.41733,89262.0,89261.0,0.20956]
[1764687520520,0.41733,89262.0,89261.0,0.41187]
[1764687520932,0.41733,89262.0,89261.0,0.20956]
[1764687521132,0.3608,89263.0,89262.0,0.41187]
[1764687521631,0.41733,89262.0,89261.0,0.018]
[1764687522631,0.21519,89266.0,89265.0,0.41187]
[1764687522927,0.41733,89263.0,89262.0,0.42587]
[1764687523127,0.41733,89263.0,89262.0,0.014]
[1764687523334,0.41733,89262.0,89261.0,0.018]
[1764687523630,0.94749,89262.0,89261.0,0.014]
[1764687523833,0.94749,89262.0,89244.0,0.13101]
[1764687524033,0.57599,89255.0,89254.0,0.20956]
[1764687524229,0.57599,89255.0,89254.0,0.41187]
[1764687525836,0.94849,89262.0,89261.0,0.20956]
[1764687526229,0.94749,89262.0,89261.0,0.15966]
[1764687526733,0.94749,89262.0,89244.0,0.13101]
[1764687526734,0.41733,89255.0,89244.0,0.13101]
[1764687526930,0.53016,89262.0,89244.0,0.13101]
[1764687526931,0.77813,89252.0,89244.0,0.13101]
[1764687527128,0.77813,89252.0,89235.0,0.3608]
[1764687527129,1.30817,89252.0,89235.0,0.3608]
[1764687527335,0.41733,89236.0,89235.0,0.77267]
[1764687528335,0.41733,89228.0,89227.0,0.41203812]
[1764687528728,0.57599,89242.0,89241.0,0.41187]
[1764687528930,1.10599,89242.0,89232.0,0.13101]
[1764687529131,1.10599,89242.0,89241.0,0.20956]
[1764687530631,0.21519,89233.0,89232.0,0.54288]
[1764687530823,0.77813,89233.0,89232.0,0.41187]
[1764687531029,0.41733,89228.0,89227.0,0.00016812]
[1764687531231,0.94725,89228.0,89227.0,0.00016812]
[1764687532540,0.3608,89230.0,89229.0,0.41187]
[1764687532930,0.001,89233.0,89232.0,0.54288]
[1764687533326,0.77913,89233.0,89232.0,0.41187]
[1764687533536,0.77913,89233.0,89232.0,0.20956]
[1764687533942,0.77813,89233.0,89232.0,0.20956]
[1764687534248,0.33426566,89233.0,89232.0,0.54288]
[1764687534431,0.00016777,89244.0,89243.0,0.41187]
[1764687534633,0.00016777,89244.0,89243.0,0.83472]
[1764687536628,0.26076,89261.0,89243.0,0.83472]
[1764687536835,0.41733,89257.0,89256.0,0.2207633]
[1764687537035,0.12259,89265.0,89256.0,0.7838733]
[1764687537237,0.33778,89265.0,89264.0,0.20956]
[1764687537432,0.41733,89265.0,89264.0,0.57036]
[1764687537639,0.41733,89265.0,89264.0,0.77267]
[1764687538039,0.41733,89265.0,89264.0,0.3608]
[1764687538941,0.41733,89265.0,89264.0,0.77267]
[1764687539532,0.41733,89265.0,89264.0,0.3608]
[1764687539737,0.41733,89265.0,89264.0,0.57036]
[1764687539938,0.41733,89265.0,89264.0,0.77267]
[1764687540334,0.09295,89276.0,89267.0,0.41187]
[1764687540552,0.53992,89265.0,89264.0,0.3608]
[1764687540843,0.54092,89265.0,89264.0,0.3608]
[1764687542042,0.53992,89265.0,89264.0,0.3608]
[1764687542341,0.21519,89265.0,89264.0,0.77267]
[1764687542544,0.53992,89265.0,89264.0,0.3608]
[1764687543349,0.21519,89257.0,89256.0,0.20972812]
[1764687543540,0.95704,89257.0,89256.0,0.00016812]
[1764687545239,0.42736,89257.0,89256.0,0.00016812]
[1764687545441,0.42011,89254.0,89253.0,0.3608]
[1764687545631,0.21217,89246.0,89245.0,0.3608]
[1764687545837,0.42011,89246.0,89245.0,0.3608]
[1764687546038,0.001,89257.0,89256.0,0.41951]
[1764687546249,0.42111,89257.0,89256.0,0.41951]
[1764687546548,0.001,89257.0,89256.0,0.41951]
[1764687547247,0.42011,89254.0,89253.0,0.3608]
[1764687547841,0.42011,89249.0,89248.0,0.00016803]
[1764687548635,0.001,89254.0,89253.0,0.41951]
[1764687548844,0.52952,89260.0,89253.0,0.78031]
[1764687549146,0.1227578,89265.0,89264.0,0.41951]
[1764687549147,0.4202778,89265.0,89264.0,0.41951]
[1764687549347,0.9497978,89265.0,89264.0,0.78031]
[1764687549646,0.4202778,89265.0,89264.0,0.78031]
[1764687552346,0.4212778,89265.0,89264.0,0.78031]
[1764687553351,0.0011678,89265.0,89264.0,0.78031]
[1764687553738,0.5511178,89265.0,89264.0,0.3608]
[1764687553938,0.2091078,89265.0,89264.0,0.78031]
[1764687554949,0.0011678,89265.0,89264.0,0.78031]
[1764687555150,0.06034819,89282.0,89280.0,0.4307103]
[1764687555346,0.00028,89286.0,89285.0,0.7915097]
[1764687555646,0.20822,89286.0,89285.0,0.78031]
[1764687555948,0.00028,89286.0,89285.0,0.78031]
[1764687556454,0.00028,89286.0,89285.0,0.79431]
[1764687556943,0.52936,89302.0,89285.0,0.3748]
[1764687557145,0.52936,89302.0,89292.0,0.0111987]
[1764687557342,0.12984,89309.0,89301.0,0.78031]
[1764687557538,0.42011,89302.0,89301.0,0.78031]
[1764687557740,0.42011,89302.0,89301.0,0.3608]
[1764687558748,0.42011,89302.0,89301.0,0.012]
[1764687559344,0.42011,89302.0,89301.0,0.015]
[1764687560246,0.42011,89297.0,89296.0,0.00016803]
[1764687560742,0.42011,89284.0,89273.0,0.3608]
[1764687560944,0.12984,89287.0,89273.0,0.3608]
[1764687560945,0.42011,89274.0,89273.0,0.3608]
[1764687561151,0.5292,89283.0,89275.0,0.41951]
[1764687561936,0.00016803,89288.0,89287.0,0.41951]
[1764687562144,0.20810803,89288.0,89287.0,0.41951]
[1764687562343,0.42027803,89288.0,89287.0,0.41951]
[1764687562741,0.42027803,89288.0,89283.0,0.3608]
[1764687562942,0.42011,89284.0,89283.0,0.3608]
[1764687563246,0.42011,89284.0,89283.0,0.56627]
[1764687563651,0.42011,89284.0,89283.0,0.3608]
[1764687564942,0.42111,89284.0,89283.0,0.79131]
[1764687565243,0.53012,89284.0,89283.0,0.79131]
[1764687565643,0.53012,89284.0,89283.0,0.79431]
[1764687565857,0.001,89284.0,89283.0,0.79431]
[1764687569053,0.20894,89284.0,89283.0,0.79431]
[1764687570149,0.001,89284.0,89283.0,0.79431]
[1764687572462,0.20894,89284.0,89283.0,0.79431]
[1764687573154,0.42111,89284.0,89283.0,0.79431]
[1764687574258,0.42111,89284.0,89283.0,0.3748]
[1764687575262,0.42111,89284.0,89283.0,0.76261]
[1764687576364,0.20894,89284.0,89283.0,0.76261]
[1764687576567,0.001,89284.0,89283.0,0.76261]
[1764687577354,0.39557,89284.0,89283.0,0.3748]
[1764687577865,0.001,89284.0,89283.0,0.76261]
[1764687579761,0.00016803,89288.0,89287.0,0.5188595]
[1764687580057,0.00016803,89288.0,89287.0,0.86846]
[1764687580266,0.00016803,89288.0,89287.0,0.74861]
[1764687580664,0.00016803,89288.0,89287.0,0.86846]
[1764687581066,0.00016803,89288.0,89287.0,0.86946]
[1764687581067,0.00816803,89288.0,89287.0,0.86946]
[1764687581268,0.00816803,89288.0,89287.0,0.87246]
[1764687582066,0.00816803,89288.0,89287.0,0.86946]
[1764687582258,0.01016803,89288.0,89287.0,0.86946]
[1764687582765,0.01016803,89288.0,89287.0,0.74961]
[1764687587267,0.2026,89308.0,89290.0,0.112149]
[1764687587467,0.39457,89308.0,89307.0,0.55104]
[1764687587673,0.39457,89308.0,89307.0,0.74861]
[1764687589371,0.06034819,89318.0,89308.0,0.0111968]
[1764687589575,0.06034819,89318.0,89307.0,0.75561]
[1764687589576,0.19661,89318.0,89317.0,0.74861]
[1764687589870,0.39457,89318.0,89317.0,0.74861]
[1764687590061,0.39457,89318.0,89317.0,0.3608]
[1764687590260,0.48515836,89318.0,89317.0,0.3608]
[1764687590572,0.39457,89308.0,89307.0,0.56104]
[1764687590875,0.39457,89308.0,89307.0,0.3638]
[1764687591275,0.39457,89308.0,89307.0,0.3608]
[1764687592276,0.39457,89308.0,89307.0,0.3618]
[1764687592478,0.39457,89308.0,89307.0,0.74961]
[1764687592773,0.19661,89308.0,89307.0,0.74961]
[1764687593478,0.39457,89308.0,89307.0,0.74961]
[1764687594375,0.08772374,89318.0,89308.0,0.0111968]
[1764687594580,0.08772374,89318.0,89317.0,0.7598057]
[1764687594581,0.39457,89318.0,89317.0,0.7598057]
[1764687594774,0.39921,89325.0,89324.0,0.38781]
[1764687594978,0.19661,89318.0,89317.0,0.74861]
[1764687595281,0.2026,89325.0,89324.0,0.2014348]
[1764687595282,0.685083,89325.0,89324.0,0.2014348]
[1764687595580,0.087913,89325.0,89324.0,0.3990048]
[1764687595785,0.00027988,89326.0,89325.0,0.38781]
[1764687596874,0.08897994,89326.0,89325.0,0.38781]
[1764687597176,0.00027988,89326.0,89325.0,0.74861]
[1764687597379,0.09097652,89326.0,89325.0,0.74861]
[1764687597680,0.00027988,89326.0,89325.0,0.75761]
[1764687598472,0.5284,89348.0,89325.0,0.3698]
[1764687598673,0.39457,89341.0,89340.0,0.74861]
[1764687599185,0.39457,89341.0,89340.0,0.3608]
[1764687599479,0.48205563,89341.0,89340.0,0.3108]
[1764687600076,0.48205563,89341.0,89340.0,0.3188]
[1764687600377,0.39457,89329.0,89328.0,0.00016793]
[1764687600586,0.39457,89329.0,89328.0,0.19040793]
[1764687600781,0.39457,89329.0,89328.0,0.38797793]
[1764687601183,0.11775,89342.0,89331.0,0.0111938]
[1764687601477,0.39457,89334.0,89333.0,0.3990037]
[1764687601682,0.51232,89342.0,89341.0,0.38781]
[1764687602076,0.3608,89351.0,89341.0,0.38781]
[1764687602077,1.28361,89351.0,89341.0,0.0111926]
[1764687602269,0.39457,89341.0,89340.0,0.0141928]
[1764687602473,0.52824,89350.0,89349.0,0.19024]
[1764687602668,0.92281,89350.0,89349.0,0.38781]
[1764687602873,0.92281,89350.0,89349.0,0.19024]
[1764687603274,0.08919535,89350.0,89349.0,0.74354]
[1764687603576,0.01,89353.0,89349.0,0.74354]
[1764687603577,0.01,89353.0,89352.0,0.37533]
[1764687603771,0.01044592,89364.0,89363.0,0.3865199]
[1764687603971,0.08884624,89368.0,89367.0,0.1925]
[1764687604168,0.71472,89387.0,89386.0,0.37533]
[1764687604679,0.3608,89387.0,89378.0,0.00016783]
[1764687604868,0.09003534,89387.0,89386.0,0.37533]
[1764687605074,0.3608,89397.0,89386.0,0.386517]
[1764687605382,0.00027962,89406.0,89405.0,0.37533]
[1764687605686,0.3608,89433.0,89405.0,0.3608]
[1764687605985,0.3608,89459.0,89445.0,0.37533]
[1764687606177,0.3608,89459.0,89445.0,0.73613]
[1764687606372,0.09019286,89446.0,89445.0,0.73613]
[1764687606575,0.0002795,89446.0,89445.0,0.73613]
[1764687606779,0.09054161,89446.0,89445.0,0.73613]
[1764687606984,0.11424,89445.0,89437.0,0.0001677]
[1764687607281,0.09181242,89446.0,89445.0,0.37533]
[1764687607484,0.0002795,89446.0,89445.0,0.37533]
[1764687607974,0.08759735,89446.0,89445.0,0.37533]
[1764687608182,0.63340854,89460.0,89445.0,0.37533]
[1764687608483,0.63340854,89460.0,89459.0,0.18283]
[1764687608484,0.45037742,89460.0,89459.0,0.18283]
[1764687608679,0.45037742,89460.0,89459.0,0.37533]
[1764687608874,0.45037742,89460.0,89459.0,0.18283]
[1764687609078,0.45037742,89460.0,89449.0,0.3608]
[1764687609079,0.62479742,89460.0,89449.0,0.3608]
[1764687609279,0.45037742,89460.0,89459.0,0.37533]
[1764687609778,0.08957742,89460.0,89459.0,0.74113]
[1764687610088,0.11424,89479.0,89467.0,0.37533]
[1764687610282,0.3608,89485.0,89484.0,0.18283]
[1764687610581,0.08830997,89485.0,89484.0,0.37533]
[1764687610787,0.16255238,89510.0,89485.0,0.37533]
[1764687610968,0.35392,89494.0,89486.0,0.0001677]
[1764687611170,0.00418384,89510.0,89486.0,0.0001677]
[1764687611377,0.16255238,89510.0,89491.0,0.3608]
[1764687611578,0.00418384,89510.0,89499.0,0.3608]
[1764687612086,0.09519456,89510.0,89509.0,0.73613]
[1764687612290,0.00418384,89510.0,89509.0,0.73613]
[1764687612780,0.3608,89523.0,89522.0,0.18283]
[1764687613083,0.3608,89523.0,89522.0,0.37533]
[1764687613380,0.09087167,89526.0,89525.0,0.37533]
[1764687613594,0.00027925,89526.0,89525.0,0.05294954]
[1764687614080,0.52764,89560.0,89556.0,0.02556]
[1764687614081,0.3608,89560.0,89556.0,0.02556]
[1764687614383,0.3608,89560.0,89514.0,0.0001676]
[1764687614384,0.35392,89556.0,89548.0,0.00016749]
[1764687614680,0.3608,89562.0,89543.0,0.00016749]
[1764687614883,0.09145493,89567.0,89556.0,0.02528]
[1764687615084,0.3608,89561.0,89548.0,0.3608]
[1764687615385,0.00716133,89570.0,89556.0,0.38608]
[1764687615979,0.56716133,89570.0,89556.0,0.38608]
[1764687616181,0.00716133,89570.0,89556.0,0.38608]
[1764687616383,0.11424,89573.0,89565.0,0.02528]
[1764687616578,0.56,89572.0,89565.0,0.02528]
[1764687616777,0.55920566,89572.0,89565.0,0.02528]
[1764687616978,0.35392,89547.0,89543.0,0.00016749]
[1764687617174,0.35392,89544.0,89523.0,0.3608]
[1764687617378,0.3608,89546.0,89523.0,0.3608]
[1764687617583,0.3278,89546.0,89533.0,0.3608]
[1764687617784,0.3608,89568.0,89544.0,0.3608]
[1764687617986,0.3608,89559.0,89544.0,0.3608]
[1764687618191,0.36096571,89559.0,89544.0,0.3608]
[1764687618484,0.35392,89534.0,89520.0,0.3608]
[1764687618685,0.35392,89521.0,89495.0,0.3608]
[1764687618889,0.15836854,89520.0,89506.0,0.3608]
[1764687619185,0.11424,89522.0,89506.0,0.3608]
[1764687619387,0.15836854,89520.0,89506.0,0.3608]
[1764687619588,0.35392,89507.0,89506.0,0.3608]
[1764687619789,0.64472749,89522.0,89504.0,0.00016749]
[1764687619790,0.46816,89505.0,89504.0,0.00016749]
[1764687619984,0.46816,89505.0,89488.0,0.3608]
[1764687620287,0.35392,89489.0,89488.0,0.3608]
[1764687620487,0.35392,89478.0,89477.0,0.00012822]
[1764687620688,0.35392,89478.0,89458.0,0.3608]
[1764687620689,0.35392,89467.0,89466.0,0.3608]
[1764687620886,0.3608,89479.0,89466.0,0.3608]
[1764687621096,0.11424,89471.0,89466.0,0.3608]
[1764687621286,0.35392,89467.0,89466.0,0.3608]
[1764687621791,0.3540122,89467.0,89466.0,0.3608]
[1764687621980,9.22e-05,89467.0,89466.0,0.3608]
[1764687622287,9.22e-05,89467.0,89464.0,0.00016759]
[1764687622498,9.22e-05,89467.0,89466.0,0.3608]
[1764687622682,0.35392,89465.0,89464.0,0.00016759]
[1764687623492,0.35392,89448.0,89447.0,0.3608]
[1764687623786,0.35392,89431.0,89430.0,0.00144]
[1764687623993,0.11424,89424.0,89411.0,8.069e-05]
[1764687624195,0.35392,89412.0,89411.0,8.069e-05]
[1764687624392,0.17442,89404.0,89403.0,0.0001677]
[1764687624692,0.0001677,89420.0,89418.0,0.011183]
[1764687624887,0.15836854,89450.0,89421.0,0.0111826]
[1764687625192,0.88788,89452.0,89431.0,0.3608]
[1764687625193,0.51228854,89440.0,89431.0,0.3608]
[1764687625488,9.223e-05,89439.0,89431.0,0.3608]
[1764687626786,0.35392,89432.0,89431.0,0.3608]
[1764687627095,0.35392,89427.0,89426.0,0.0001677]
[1764687627994,0.35392,89424.0,89404.0,0.3608]
[1764687628189,0.7216,89427.0,89394.0,0.3608]
[1764687628190,0.1795,89405.0,89394.0,0.3608]
[1764687628385,0.46816,89395.0,89382.0,0.3608]
[1764687628601,0.46816,89395.0,89340.0,0.24723854]
[1764687628603,0.05905083,89503.0,89471.0,0.05226]
[1764687628885,0.3608,89546.0,89471.0,0.05226]